Cogmind - Beta 12 @@@ ROGUE MODE // 2023.10.29 @ 01:11:23 Player: gallo Result: Destroyed by as-85553 with Assembled Maul Performance ------------- Evolutions (1) 500 Regions Visited (3) 600 Robots Destroyed (32) 160 Value Destroyed (719) 719 Prototype IDs (1) 20 Alien Tech Used (0) 0 Bonus (0) 0 TOTAL SCORE: 1999 Bonus ------- None Cogmind --------- Core Integrity 0/400 Matter 197/300 Energy 263/265 System Corruption 3% Temperature Cool (0) Movement Treading (160) Location -9/Mines Parts ------- > --- POWER (2) -------- Improved Ion Engine > --- PROPULSION (3) --- Light Treads Light Treads > --- UTILITY (2) ------ Large Storage Unit Improved Terrain Scanner > --- WEAPON (2) ------- Heavy Assault Rifle Heavy Assault Rifle > --- INVENTORY (15) --- Heat Sink Utility Shielding Weapon Shielding Trap Extractor (0/4) Field Recycling Unit (0) Mining Laser Mining Laser Peak State ------------ > --- POWER ------------ Improved Ion Engine > --- PROPULSION ------- Light Treads Light Treads > --- UTILITY ---------- Large Storage Unit Improved Terrain Scanner > --- WEAPON ----------- Heavy Assault Rifle Heavy Assault Rifle > --- INVENTORY -------- Heat Sink Trap Extractor Field Recycling Unit Heavy EM Pulse Gun Assault Rifle Autogun [Rating: 13] Favorites ----------- Power Light Ion Engine Engine Light Ion Engine Propulsion Aluminum Leg Treads Light Treads Leg Aluminum Leg Wheel Wheel Flight Unit Flight Unit Utility Large Storage Unit Device Improved Terrain Scanner Storage Large Storage Unit Processor Advanced Targeting Computer Protection Light Armor Plating Weapon Assault Rifle Energy Gun Heavy EM Pulse Gun Ballistic Gun Assault Rifle Build | -11 -10 -9 -9 ------- Run | Jun Mat Mat Min Slots Evolved 2 | . . 2 . Power 1 | . . 1 . Propulsion 1 | . . 1 . Utility . | . . . . Weapon . | . . . . Parts Attached 56 | 6 8 42 . Power 2 | 1 . 1 . Engine 2 | 1 . 1 . Core . | . . . . Reactor . | . . . . Propulsion 18 | 2 2 14 . Treads 2 | . . 2 . Leg 4 | 2 . 2 . Wheel 2 | . . 2 . Hover . | . . . . Flight 10 | . 2 8 . Utility 16 | 1 4 11 . Device 10 | 1 3 6 . Storage 2 | . 1 1 . Processor 1 | . . 1 . Hackware . | . . . . Protection 3 | . . 3 . Artifact . | . . . . Weapon 20 | 2 2 16 . Energy Gun 10 | 1 1 8 . Energy Cannon . | . . . . Ballistic Gun 10 | 1 1 8 . Ballistic Cannon . | . . . . Launcher . | . . . . Special Weapon . | . . . . Impact Weapon . | . . . . Slashing Weapon . | . . . . Piercing Weapon . | . . . . Special Melee Weapon . | . . . . Unidentified Prototypes 1 | . . 1 . Parts Lost 11 | . 1 10 . Power 1 | . 1 . . Propulsion 7 | . . 7 . Utility . | . . . . Weapon 3 | . . 3 . Highest Loss Streak 4 | . 1 4 . To Critical Strikes . | . . . . Average Slot Usage (%) 57 | . 78 50 77 Engine 2 | . 5 1 11 Treads 2 | . . 2 22 Leg 6 | . 22 . . Wheel 2 | . . 4 . Flight 4 | . 3 5 . Device 7 | . 17 3 11 Storage 8 | . . 10 11 Processor 1 | . . 2 . Energy Gun 7 | . 13 5 . Ballistic Gun 12 | . 14 12 22 Naked Turns . | . . . . Heaviest Build 34 | 8 26 34 34 Greatest Support 40 | 20 20 40 40 Greatest Overweight (x) 8 | . 3 8 . Average Overweight (x) 1 | . . 2 . Largest Inventory Capacity 15 | 5 15 15 15 Average Capacity 11 | 5 5 14 15 Most Carried 11 | 4 5 11 7 Average Carried 6 | 2 3 7 7 Final Capacity 15 | 5 15 15 15 Final Carried 7 | 3 3 7 7 Class Distribution -------------------- 88% | Mutant 11% | Scavenger-Mutant Dominant Class ---------------- Mutant | -10/Materials Mutant | -9/Materials Scavenger-Mutant | -9/Mines Resources | -11 -10 -9 -9 ----------- Run | Jun Mat Mat Min Matter Collected 1087 | 268 171 648 . Remotely . | . . . . Salvage Created 1035 | 72 308 635 20 Parts 79 | 10 20 49 . Haulers Intercepted . | . . . . Recyclers Shooed 3 | . . 3 . Parts Field Recycled 11 | . . 11 . Retrieved Matter 18 | . . 18 . Parts Self-Destructed . | . . . . Prevented . | . . . . Kills | -11 -10 -9 -9 ------- Run | Jun Mat Mat Min Combat Hostiles Destroyed 26 | 1 7 17 1 Guns 25 | . 7 17 1 AOE 1 | 1 . . . Classes Destroyed 8 | 2 3 2 1 Worker 2 | . 1 1 . Tunneler 2 | 2 . . . Watcher 3 | . 1 2 . Swarmer 11 | . 3 8 . Grunt 9 | 1 4 4 . Brawler 1 | . . 1 . Sentry 4 | . . 4 . Assembled 1 | . . . 1 Best Kill Streak 5 | 3 3 5 1 Combat Bots Only 5 | 1 3 5 1 Max Kills in Single Turn 2 | 2 1 2 1 Gunslinging 1 | . . 1 . Exploded 1 | 1 . . . Melee . | . . . . Uniques/NPCs Destroyed . | . . . . Combat | -11 -10 -9 -9 -------- Run | Jun Mat Mat Min Damage Taken 1718 | 56 271 1250 141 Core 509 | 10 76 392 31 Absorbed by Shields . | . . . . Core Remaining (%) 80 | 96 65 . . Volleys Fired 130 | 4 43 81 2 Largest 2 | 2 2 2 2 Hottest 68 | 60 60 68 46 Shots Fired 207 | 8 79 116 4 Gun 207 | 8 79 116 4 Cannon . | . . . . Launcher . | . . . . Special . | . . . . Kinetic 140 | 4 43 89 4 Thermal . | . . . . Explosive . | . . . . Electromagnetic 67 | 4 36 27 . Robot Hit Streak 8 | 2 8 7 5 Robot Miss Streak 7 | 3 4 7 1 Penetration Max . | . . . . Secondary Targets 2 | . . 2 . Max Gunslinging Chain 1 | . . 1 . Shots Hit Robots 107 | 4 36 64 3 Core Hits 50 | 4 15 28 3 Critical Kills . | . . . . Critical Parts Destroyed . | . . . . Critical Strikes . | . . . . Melee Attacks . | . . . . Impact . | . . . . Slashing . | . . . . Piercing . | . . . . Sneak Attacks . | . . . . Combat Hostiles . | . . . . Follow-up Attacks . | . . . . Damage Inflicted 1669 | 141 454 1015 59 Guns 1539 | 63 446 971 59 Cannons . | . . . . Explosions 100 | 69 . 31 . Melee . | . . . . Ramming 30 | 9 8 13 . Kinetic 1142 | 35 292 756 59 Thermal 100 | 69 . 31 . Explosive . | . . . . Electromagnetic 397 | 28 154 215 . Impact . | . . . . Slashing . | . . . . Piercing . | . . . . Highest Corruption 3 | . 2 3 3 Average Corruption 2 | . 2 3 3 Corruption Purged . | . . . . Corruption Blocked . | . . . . Effects 17 | . . 17 . Message Errors 8 | . . 8 . Matter Fused 3 | . . 3 . Heat Flow Errors 1 | . . 1 . Energy Discharges 1 | . . 1 . Parts Rejected 1 | . . 1 . Data Loss (major) 1 | . . 1 . Misfires 1 | . . 1 . Alerts 1 | . . 1 . Overload Shots . | . . . . Overflow Damage . | . . . . Projectiles . | . . . . Explosions . | . . . . Melee . | . . . . Knockbacks . | . . . . Impact . | . . . . Kinetic . | . . . . Secondary . | . . . . Self-Inflicted Damage 46 | . 4 42 . Shots 1 | . . 1 . Rammed 5 | . 1 4 . Targets Rammed 6 | 1 1 4 . Kicked 1 | 1 . . . Crushed . | . . . . Highest Temperature 120 | 12 42 120 13 Average Temperature 16 | 8 19 16 9 Received Heat Transfer 538 | 30 117 351 40 Siege Activations . | . . . . Robots Corrupted . | . . . . Combat Hostiles . | . . . . Parts Fried 2 | . 1 1 . Impact Corruptions . | . . . . Robots Melted . | . . . . Combat Hostiles . | . . . . Parts Melted . | . . . . Heat Transferred 150 | 100 . 50 . Parts Sabotaged . | . . . . Parts Stolen . | . . . . Parts Stripped . | . . . . Power Chain Reactions 2 | 1 . 1 . Missiles Intercepted . | . . . . Alert | -11 -10 -9 -9 ------- Run | Jun Mat Mat Min Peak Influence 182 | 30 144 182 15 Initial 44 | . 19 44 15 Average 68 | 11 87 68 15 Maximum Alert Level . | . . . . Low Security (%) 100 | 100 100 100 100 Level 1 . | . . . . Level 2 . | . . . . Level 3 . | . . . . Level 4 . | . . . . Level 5 . | . . . . High Security . | . . . . Max Security . | . . . . Squads Dispatched 2 | . 1 1 . Investigation . | . . . . Extermination . | . . . . Reinforcement 2 | . 1 1 . Assault . | . . . . Garrison . | . . . . Intercept . | . . . . Searches Triggered . | . . . . Construction Impeded . | . . . . Haulers Reinforced . | . . . . Active Scanning Responses . | . . . . Cargo Convoy Interrupts . | . . . . Stealth | -11 -10 -9 -9 --------- Run | Jun Mat Mat Min Distress Signals 3 | . 1 2 . Communications Jammed . | . . . . Distress Signals . | . . . . Times Spotted 52 | 1 16 24 11 Peak Tracking Total 10 | 1 4 3 10 Tactical Retreats 1 | . . 1 . Traps | -11 -10 -9 -9 ------- Run | Jun Mat Mat Min Traps Triggered 2 | . . 2 . Indirectly . | . . . . Trap Hack Attempts . | . . . . Triggered . | . . . . Disarmed . | . . . . Reprogrammed . | . . . . Reused . | . . . . Traps Extracted . | . . . . Installed . | . . . . Triggered . | . . . . Machines | -11 -10 -9 -9 ---------- Run | Jun Mat Mat Min Machines Disabled 1 | . . 1 . Max in Single Turn 1 | . . 1 . Machines Repaired . | . . . . Machines Sabotaged . | . . . . Overloaded Fab Kills . | . . . . Hacking | -11 -10 -9 -9 --------- Run | Jun Mat Mat Min Machines Accessed 1 | . . 1 . Terminals . | . . . . Fabricators . | . . . . Repair Stations . | . . . . Recycling Units . | . . . . Scanalyzers 1 | . . 1 . Garrison Access . | . . . . Total Hacks 1 | . . 1 . Successful . | . . . . Failed 1 | . . 1 . Catastrophic . | . . . . Database Lockouts . | . . . . Manual . | . . . . Terminals . | . . . . Fabricators . | . . . . Repair Stations . | . . . . Recycling Units . | . . . . Scanalyzers 1 | . . 1 . Garrison Access . | . . . . Terminal Hacks . | . . . . Fabricator Hacks . | . . . . Repair Station Hacks . | . . . . Recycling Unit Hacks . | . . . . Scanalyzer . | . . . . Garrison Access Hacks . | . . . . Unauthorized Hacks . | . . . . Terminals . | . . . . Fabricators . | . . . . Repair Stations . | . . . . Recycling Units . | . . . . Scanalyzers . | . . . . Garrison Access . | . . . . Data Cores Recovered . | . . . . Used . | . . . . Hacking Detections 1 | . . 1 . Full Trace Events . | . . . . Feedback Events . | . . . . Feedback Blocked . | . . . . Robot Schematics Acquired . | . . . . Robots Built . | . . . . Authchips . | . . . . Time . | . . . . Total Robot Build Rating . | . . . . Part Schematics Acquired . | . . . . Parts Built . | . . . . Authchips . | . . . . Time . | . . . . Total Part Build Rating . | . . . . Parts Repaired . | . . . . Time . | . . . . Parts Recycled . | . . . . Recycled Matter . | . . . . Retrieved Matter . | . . . . Retrieved Components . | . . . . Parts Scanalyzed . | . . . . Part Schematics Acquired . | . . . . Parts Damaged . | . . . . Bothacking | -11 -10 -9 -9 ------------ Run | Jun Mat Mat Min Used RIF Installer . | . . . . Robots Hacked . | . . . . Non-combat . | . . . . Combat . | . . . . Robot Hacks Applied . | . . . . Relay Couplers Released . | . . . . Fabnet Peak Effective % . | . . . . Robots Rewired . | . . . . Allies Hacked . | . . . . Hacks Repelled . | . . . . Allies | -11 -10 -9 -9 -------- Run | Jun Mat Mat Min Total Allies . | . . . . Largest Group . | . . . . Highest-Rated Group . | . . . . Highest-Rated Ally . | . . . . Total Orders . | . . . . Ally Attacks . | . . . . Total Damage . | . . . . Kills . | . . . . Allies Corrupted . | . . . . Allies Melted . | . . . . Intel | -11 -10 -9 -9 ------- Run | Jun Mat Mat Min Robot Analysis Total . | . . . . Derelict Logs Recovered . | . . . . Drone Launches . | . . . . Drone Recoveries . | . . . . Exploration | -11 -10 -9 -9 ------------- Run | Jun Mat Mat Min Turns Passed 2555 | 166 622 1744 23 Spaces Moved 1100 | 125 324 639 12 Core 147 | 21 13 113 . Treads 129 | . . 117 12 Legs 359 | 104 225 30 . Wheels 239 | . . 239 . Hover . | . . . . Flight 226 | . 86 140 . Fastest Speed 37 | 50 37 37 160 Average Speed 163 | 108 105 204 160 Slowest Speed 520 | 120 277 520 160 Overloaded Moves . | . . . . Propulsion Burnouts . | . . . . Robots Hopped 1 | . 1 . . Cave-ins Triggered . | . . . . Exploration Rate (%) 19 | 6 36 31 5 Regions Visited 3 Branch Regions 1 Pre-discovered Areas . | . . . . Known Exits Taken . | . . . . Unknown Exits Taken 3 | 1 1 1 . Scrap Searched . | . . . . Spaces Dug . | . . . . Terrain Destroyed 1 | . . 1 . Melee . | . . . . Projectile . | . . . . AOE 1 | . . 1 . Terrain Rammed . | . . . . Walls Destroyed . | . . . . Machines Disabled . | . . . . Actions | -11 -10 -9 -9 --------- Run | Jun Mat Mat Min Total 1662 | 145 530 973 14 Wait 296 | 4 136 156 . Move 1095 | 124 321 638 12 Hop 1 | . 1 . . Pick Up 39 | 5 9 25 . Fast Attach 12 | 5 . 7 . Attach 38 | 1 7 30 . Detach 19 | . 3 16 . Swap 6 | . 1 5 . Drop 20 | 1 8 11 . Fire 130 | 4 43 81 2 Melee . | . . . . Ram 5 | . 1 4 . Kick 1 | 1 . . . Crush . | . . . . Escape Stasis . | . . . . Rewire . | . . . . Trap . | . . . . Miscellaneous . | . . . . Route ------- -11/Junkyard -10/Materials (discovered 2 exits: *Mat x2) -9/Materials -9/Mines History --------- Turn | Location | Event 2 | -11/Junkyard | Met Revision 17 87 | -11/Junkyard | Discovered new exit (range 8) 167 | -11/Junkyard | Entered Materials 301 | -10/Materials | Build established: Mutant 522 | -10/Materials | Discovered new exit (range 16) 756 | -10/Materials | Discovered new exit (range 16) 789 | -10/Materials | Entered another Materials area 789 | -9/Materials | Evolved 2 slots: Power x1, Propulsion x1 1610 | -9/Materials | Lost 4 parts (3n1w) 2021 | -9/Materials | Core integrity fell below 50% 2114 | -9/Materials | Core integrity fell below 20% 2163 | -9/Materials | Lost 4 parts (2n2w) 2495 | -9/Materials | Discovered new exit (range 14) 2533 | -9/Materials | Entered Mines 2534 | -9/Mines | Assembled infested the area 2539 | -9/Mines | Assisted by a Guerilla fighting off Assembled 2556 | -9/Mines | Destroyed by as-85553 with Assembled Maul Last Messages --------------- I've been tracking a group of Assembled to figure out where they're coming from, and they're closing on this area, come on!" 02540_ PX-NQ9(h): "I'll hold them off! Go on ahead or try to find another way!" 02540_ HV Slug penetrates as-52085. 02540_ as-52085 suffers critical hit (Destroy). 02540_ as-52085 destroyed. 02540_ HV Slug penetrates as-04987. 02540_ as-26781 suffers critical hit (Destroy). 02541_ K-01 Serf collects debris. 02544_ K-01 Serf cleans the Core Extractor. 02544_ PX-NQ9(h) system corrupted by crushing effect. 02544_ as-53938 sneak attacks. 02544_ K-01 Serf system corrupted by crushing effect. 02545_ PX-NQ9(h) system terminally corrupted. 02546_ K-01 Serf destroyed. 02546_ K-01 Serf collects debris. 02548_ K-01 Serf knocked back. 02549_ as-53938 destroyed. 02550_ K-01 Serf destroyed. Map ----- +----------------------------------------------------+ | | | | | | | | | | | | | | | | | | | | | | | | | | | | | | | | | | | | | | | | | | | | | ?????????????????#????????????????????????? | | ?????????????###########??????????????????? | | ????#????????# #???????#??????????? | | ?????????????# """@a #???????????#??????? | | ?????????????# """aa #???#??????????????? | | ??????????##?# """ % #?????#????????????? | | ?????????????# aa %aa##????##???????????? | | ?????????????# """%""" T##??????????#?????? | | ?????????????# "" %""" ##?????????????????? | | ?????????????# """%""" #??????????????????? | | ??????????#??# =a #??????#???????????? | | ?????????????##### ####??????????????????? | | ?????????????????#% ??????????????????????? | | ?????????????????# ??????????????????????? | | ????????????? ??? %????????#?????????????? | | ???????????????? $ ??#???????????????????? | | ??????????????? ?###??????????????????????? | | ????????????? ????????????????????????????? | | ??????????????????????????????????????????? | | ????????????????????????#?????????????????? | | ??????????????????????????????????????????? | | ??????????????????????????????????????????? | | ??????????????????????????????????????????? | | ??????????????????????????????????????????? | | ??????????????????????????????????????????? | | ??????????????????????????????????????????? | | ??????????????????????????????????????????? | | ??????????????????????????????????????????? | +----------------------------------------------------+ Best States ------------- Heat Dissipation 28 Energy Generation 12 Energy Capacity 265 Matter Stores 300 Matter Capacity 300 Sight Range 16 Terrain Scan Range 16 Terrain Scan Density 10 Armor Coverage 150 Evasion (%) 62 Targeting Accuracy 8 Recoil Reduction 2 Item Schematics ----------------- None Robot Schematics ------------------ None Fabricated ------------ Nothing Alien Tech Used ----------------- None Achievements -------------- Risk Taker Challenges ------------ None Game ------ Seed ForceMakeshiftModule Manual? 0 Play Time 00:24:15 Cumulative 1.6 hours Start 2023.10.29 @ 00:47:36 End 2023.10.29 @ 01:11:23 Sessions 1 Manual Loads 0 Difficulty Rogue Special Mode None Game No. 3 Rogue 3 Adventurer 0 Explorer 0 Win Type - Total 0 Types 0/0/0/0/0/0/0/0/0 Lore% 0 Gallery% 4 Achievement% 3 Wizard Run 0 Options --------- ASCII 0 Keyboard 0 Movement Arrows Keybinds 0 Fullscreen 1 Font 18/Smallcaps Map View 76x50 Tactical HUD 1 Map Filters NONE Filters NONE Steam 1 RUN: 91538e21-d4c2-463f-b8f7-42777c169e6e